[Event "CAT-chT Honor Division 2019"]
[Site "Catalonia"]
[Date "2019.01.19"]
[Round "1"]
[White "Varela La Madrid, Tilsia Carolina"]
[Black "Plachkinova, Tatjana"]
[Result "1-0"]
[ECO "B22"]
[WhiteElo "2086"]
[BlackElo "2059"]
[Annotator "NA RC"]
[PlyCount "72"]
[EventDate "2019.01.16"]
[EventType "team-tourn"]
[EventCountry "ESP"]
[SourceTitle "playchess.com"]
[Source "ChessBase"]
[SourceQuality "1"]
[TimeControl "5400+30"]

1. e4 c5 2. c3 Nf6 3. e5 Nd5 4. d4 cxd4 5. Nf3 Nc6 6. cxd4 d6 7. Bc4 e6 8. O-O Nb6 9. Bd3 Be7 10. a3 O-O 11. Nc3 f6 12. exf6 Bxf6 13. Bc2 d5 14. Re1 Nc4 15. Qd3 g6 16. b3 Nd6 17. Bb2 Nf5 18. Ne2 Qd6 19. Ng3 Nxg3 20. hxg3 Bd7 21. b4 a6 22. Rad1 Rac8 23. Bb3 Ne7 24. Bc1 Bb5 25. Qe3 Nf5 26. Qxe6+ Qxe6 27. Rxe6 Nxd4 28. Nxd4 Bxd4 29. Bxd5 Bxf2+ 30. Kh2 Rf5 31. Rxg6+ Kf8 32. Rg8+ Ke7 33. Bg5+ Rxg5 34. Rxg5 Kf6 35. Rg8 Rc3 36. Rf8+ Ke5 1-0

[Event "CAT-chT Honor Division 2019"]
[Site "Catalonia"]
[Date "2019.01.19"]
[Round "1"]
[White "Saldana Caballe, Enric"]
[Black "Garcia Marin, Guillem"]
[Result "1-0"]
[ECO "C42"]
[WhiteElo "2069"]
[BlackElo "2067"]
[Annotator "NA RC"]
[PlyCount "139"]
[EventDate "2019.01.16"]
[EventType "team-tourn"]
[EventCountry "ESP"]
[SourceTitle "playchess.com"]
[Source "ChessBase"]
[SourceQuality "1"]
[TimeControl "5400+30"]

1. e4 e5 2. Nf3 Nf6 3. Nxe5 d6 4. Nf3 Nxe4 5. Nc3 Nxc3 6. dxc3 Be7 7. Bf4 Nd7 8. Qd2 O-O 9. O-O-O Nc5 10. Be2 {C42: Petroff Defence: 3 Nxe5 and unusual White 3rd moves} (10. Be3 Re8 11. Bc4 Be6 12. Bxe6 Nxe6 13. h4 Qd7 14. Qd3 Qc6 15. Qf5 Qc4 16. Ng5 Bxg5 17. hxg5 Nf8 {½-½ (27) Salgado Lopez,I (2651)-Ipatov,A (2657) Izmir 2016}) 10... c6 $146 ({Predecessor:} 10... Re8 11. Rhe1 Bf6 12. Bc4 Be6 13. Bxe6 Rxe6 14. Be3 Ne4 15. Qd3 Qd7 16. g4 Rae8 17. Rg1 Qa4 {1-0 (31) Hague,B (2336)-Dive,R (2318) Hamilton 2016}) 11. Bxd6 Bxd6 12. Qxd6 Qxd6 13. Rxd6 Ne4 14. Rd4 Nxf2 15. Rf1 Ng4 16. Ng5 Ne3 17. Rf3 Nd5 18. Bc4 Be6 19. Bd3 h6 20. Nxe6 fxe6 21. Be4 Rxf3 22. Bxf3 Nf6 23. Rb4 b6 24. Bxc6 Rd8 25. Rd4 Rf8 26. a4 Kf7 27. a5 Ke7 28. axb6 axb6 29. Bf3 e5 30. Rb4 Nd7 31. Kd2 Rf6 32. Rb5 g6 33. Ke3 h5 34. g4 Kd6 35. h3 h4 (35... hxg4 $142 36. Bxg4 Rf4) 36. b3 Kc7 37. Rd5 g5 38. Be4 Rd6 39. Rxd6 Kxd6 40. b4 Nf6 41. Kd3 Ke6 42. Bf5+ Kd6 43. Be4 Ke6 44. Bh1 Kd6 45. c4 Nd7 46. Ke4 Ke6 47. Kd3 Kd6 48. Be4 Nf6 49. Bf5 Kc6 50. Kc3 Kd6 51. Kd3 Kc6 52. c3 Kd6 53. Be4 Nd7 54. Bf3 Nf6 55. c5+ bxc5 56. b5 Nd7 57. Bc6 Nb6 58. Ke4 Ke6 59. c4 Kf6 60. Bd5 Na4 61. Bc6 Nb6 62. Bd5 Na4 63. Bg8 Nb6 64. Kd3 Kg7 65. Be6 Kf6 66. Bf5 Na4 $11 67. Ke3 Nb6 68. Ke4 Nxc4 69. Kd5 Nb6+ 70. Kxc5 1-0

[Event "CAT-chT Honor Division 2019"]
[Site "Catalonia"]
[Date "2019.01.19"]
[Round "1"]
[White "Fernandez Lozano, Francesc"]
[Black "Barberans Sola, Sebastia"]
[Result "1-0"]
[ECO "A45"]
[WhiteElo "1972"]
[BlackElo "1930"]
[Annotator "NA RC"]
[PlyCount "104"]
[EventDate "2019.01.16"]
[EventType "team-tourn"]
[EventCountry "ESP"]
[SourceTitle "playchess.com"]
[Source "ChessBase"]
[SourceQuality "1"]
[TimeControl "5400+30"]

1. d4 Nf6 2. Bg5 Ne4 3. Bf4 d6 4. Nd2 Bf5 5. Nxe4 Bxe4 6. f3 Bg6 7. e4 e6 8. Qd2 d5 9. Bd3 c6 10. Ne2 Be7 11. Be3 Nd7 12. c3 Nf6 13. e5 Nd7 14. O-O Bxd3 15. Qxd3 O-O 16. Rae1 c5 17. f4 f6 18. Qb1 c4 19. f5 Qb6 20. fxe6 Nxe5 21. Nf4 Nd3 22. Nxd3 cxd3 23. Bc1 Qa6 24. Rf3 Rae8 25. a3 Bd8 26. Qxd3 Rxe6 27. Rxe6 Qxe6 28. Re3 Qg4 29. Re1 Bc7 30. Bd2 Qh5 31. g3 Re8 32. Rxe8+ Qxe8 33. Qf5 Qd8 34. Qe6+ Kf8 35. c4 a5 36. cxd5 Qe8 37. Bf4 Qxe6 38. dxe6 Bb6 39. Be3 Ke7 40. Kf2 Bc7 41. d5 b5 42. Bc5+ Bd6 43. Bb6 a4 44. Ke3 f5 45. Bd4 g5 46. Kf3 h5 47. Bc3 Bb8 48. Bb4+ Bd6 49. Bxd6+ Kxd6 50. h4 g4+ 51. Kf4 Ke7 52. Kxf5 Kd6 1-0

[Event "CAT-chT Honor Division 2019"]
[Site "Catalonia"]
[Date "2019.01.26"]
[Round "2"]
[White "Guerra Mendez, Jose Angel"]
[Black "Cuartas, Jaime Alexander"]
[Result "0-1"]
[ECO "C57"]
[WhiteElo "2531"]
[BlackElo "2516"]
[Annotator "ChessBase"]
[PlyCount "88"]
[EventDate "2019.01.16"]
[EventType "team-tourn"]
[EventCountry "ESP"]
[SourceTitle "playchess.com"]
[Source "ChessBase"]
[SourceQuality "1"]
[WhiteTeam "Cerdanyola Valles"]
[BlackTeam "Barbera"]
[TimeControl "5400+30"]

1. e4 e5 2. Nf3 Nc6 3. Bc4 Nf6 4. Ng5 d5 5. exd5 Nd4 6. c3 Nf5 7. O-O Bd6 8. d4 exd4 9. Re1+ Kf8 10. cxd4 a6 11. Nc3 h6 12. Nge4 b5 13. Bb3 Nxe4 14. Nxe4 Bb7 15. Nxd6 cxd6 16. a4 g6 17. Re4 Kg7 18. Rf4 Re8 19. Bd2 Ne7 20. Qf3 f5 21. Qg3 Qd7 22. Rh4 Ng8 23. Bd1 Bxd5 24. Qh3 g5 25. Qg3 Kf8 26. Rh5 f4 27. Qh3 Qxh3 28. Rxh3 bxa4 29. Bxa4 Re2 30. Bc3 Rb8 31. Bd1 Re7 32. Ba4 Kg7 33. Rd3 Nf6 34. Rdd1 Kf7 35. Bc2 Bc4 36. Bd3 Bxd3 37. Rxd3 Nd5 38. h4 g4 39. g3 f3 40. Kf1 Re2 41. Be1 Rbxb2 42. Rda3 Nb4 43. Kg1 Nc2 44. Bc3 Rb5 0-1

[Event "CAT-chT Honor Division 2019"]
[Site "Catalonia"]
[Date "2019.01.26"]
[Round "2"]
[White "Vila Gazquez, Xavier"]
[Black "Gual Pascual, Antonio"]
[Result "0-1"]
[ECO "B07"]
[WhiteElo "2475"]
[BlackElo "2362"]
[Annotator "RC"]
[PlyCount "130"]
[EventDate "2019.01.16"]
[EventType "team-tourn"]
[EventCountry "ESP"]
[SourceTitle "playchess.com"]
[Source "ChessBase"]
[SourceQuality "1"]
[WhiteTeam "Barbera"]
[BlackTeam "Cerdanyola Valles"]
[TimeControl "5400+30"]

1. e4 d6 2. d4 Nf6 3. Nc3 g6 4. Bg5 c6 5. Qd2 Nbd7 6. f4 d5 7. e5 Ne4 8. Nxe4 dxe4 9. e6 fxe6 10. Ne2 Bg7 11. Nc3 Qa5 12. Bc4 Nb6 13. Bb3 Nd5 14. O-O-O h6 15. Bh4 e3 16. Qe1 Nxf4 17. Bg3 e2 18. Rd2 O-O 19. Nxe2 Nd5 20. c4 Nb4 21. a3 Na6 22. Nf4 Qb6 23. Qe3 c5 24. d5 e5 25. Ne2 Bf5 26. Ba2 Qf6 27. Nc3 Nb8 28. Ne4 Qb6 29. Nxc5 Nd7 30. Bf2 Nxc5 31. Qxc5 Qf6 32. Re1 h5 33. Qe3 Kh7 34. Qg3 Rac8 35. Be3 Qa6 36. Bg5 Rxc4+ 37. Bxc4 Qxc4+ 38. Qc3 Qa2 39. Rc2 Rc8 40. Qxc8 Bxc8 41. Rxc8 Qa1+ 42. Kd2 Qxb2+ 43. Rc2 Qxa3 44. Ke2 Qa4 45. Kd2 Qa5+ 46. Ke2 Qxd5 47. h4 Qxg2+ 48. Kd1 Qd5+ 49. Kc1 Bf6 50. Rd1 Bxg5+ 51. hxg5 Qf3 52. Re1 Qf4+ 53. Kd1 Qxg5 54. Rce2 Qg4 55. Kd2 Qd4+ 56. Kc2 b5 57. Rxe5 Qc4+ 58. Kb2 b4 59. Rxe7+ Kh6 60. R1e3 Qd4+ 61. Kb3 a5 62. R7e4 Qa1 63. Re6 Qb1+ 64. Kc4 Qc2+ 65. Kd4 a4 0-1

[Event "CAT-chT Honor Division 2019"]
[Site "Catalonia"]
[Date "2019.01.26"]
[Round "2"]
[White "Prie, Eric"]
[Black "Granados Gomez, Manuel"]
[Result "1-0"]
[ECO "D00"]
[WhiteElo "2459"]
[BlackElo "2372"]
[Annotator "ChessBase"]
[PlyCount "87"]
[EventDate "2019.01.16"]
[EventType "team-tourn"]
[EventCountry "ESP"]
[SourceTitle "playchess.com"]
[Source "ChessBase"]
[SourceQuality "1"]
[WhiteTeam "Gerunda"]
[BlackTeam "Foment"]
[TimeControl "5400+30"]

1. d4 {[%emt 0:00:00]} d5 {[%emt 0:00:00]} 2. Bf4 {[%emt 0:00:00]} c5 {[%emt 0:00:12]} 3. Nc3 {[%emt 0:00:00]} Nc6 {[%emt 0:00:33]} 4. e4 {[%emt 0:00:00]} cxd4 {[%emt 0:01:31]} 5. exd5 {[%emt 0:00:12]} dxc3 {[%emt 0:08:22]} 6. dxc6 {[%emt 0:00:30]} Qxd1+ {[%emt 0:01:24]} 7. Rxd1 {[%emt 0:00:15]} bxc6 {[%emt 0:00:08]} 8. Bc7 {[%emt 0:00:10]} Bb7 {[%emt 0:01:25]} 9. bxc3 {[%emt 0:15:40]} Nf6 {[%emt 0:01:56]} 10. Rb1 {[%emt 0:05:24]} Bc8 {[%emt 0:00:27]} 11. c4 {[%emt 0:01:17]} Bf5 {[%emt 0:12:15]} 12. Bd3 {[%emt 0:01:49]} Bxd3 {[%emt 0:08:20]} 13. cxd3 {[%emt 0:00:22]} Nd7 {[%emt 0:00:16]} 14. Nf3 {[%emt 0:00:43]} e6 {[%emt 0:01:17]} 15. Ke2 {[%emt 0:04:08]} Bc5 {[%emt 0:00:37]} 16. Rb7 {[%emt 0:15:16]} Bb6 {[%emt 0:04:50]} 17. d4 {[%emt 0:00:36]} c5 {[%emt 0:01:48]} 18. Ne5 {[%emt 0:01:52]} cxd4 {[%emt 0:19:49]} 19. Bxb6 {[%emt 0:18:20]} Nxb6 {[%emt 0:05:22]} 20. c5 {[%emt 0:00:50]} f6 {[%emt 0:06:43]} 21. cxb6 {[%emt 0:07:20]} axb6 {[%emt 0:00:24]} 22. Nd7 {[%emt 0:08:52]} Rxa2+ {[%emt 0:01:01]} 23. Kd3 {[%emt 0:02:29]} Ke7 {[%emt 0:00:58]} 24. Nxb6+ {[%emt 0:02:32]} Kd6 {[%emt 0:00:37]} 25. Nc4+ {[%emt 0:00:19]} Kc6 {[%emt 0:05:08]} 26. Rhb1 {[%emt 0:00:17]} Rd8 {[%emt 0:04:36]} 27. Rxg7 {[%emt 0:05:18]} e5 {[%emt 0:02:24]} 28. f3 {[%emt 0:00:24]} Ra6 {[%emt 0:07:57]} 29. Rbb7 {[%emt 0:02:12]} Kd5 {[%emt 0:00:30]} 30. Nb6+ {[%emt 0:03:57]} Ke6 {[%emt 0:00:21]} 31. Rbe7+ {[%emt 0:02:02]} Kf5 {[%emt 0:00:14]} 32. Nc4 {[%emt 0:00:27]} Rb8 {[%emt 0:00:50]} 33. Rb7 {[%emt 0:00:22]} Rxb7 {[%emt 0:02:09]} 34. Rxb7 {[%emt 0:00:08]} Kg6 {[%emt 0:00:51]} 35. Rb6 {[%emt 0:00:19]} Rxb6 {[%emt 0:00:33]} 36. Nxb6 {[%emt 0:00:08]} Kf5 {[%emt 0:00:10]} 37. g3 {[%emt 0:01:21]} h5 38. h4 Ke6 {[%emt 0:00:23]} 39. Ke4 {[%emt 0:01:44]} f5+ {[%emt 0:00:18]} 40. Kd3 {[%emt 0:00:05]} Kd6 {[%emt 0:00:25]} 41. Kc4 {[%emt 0:00:13]} Ke6 {[%emt 0:00:28]} 42. Na4 {[%emt 0:00:19]} e4 {[%emt 0:02:44]} 43. Nc5+ {[%emt 0:00:39]} Ke5 {[%emt 0:00:11]} 44. f4+ 1-0

[Event "CAT-chT Honor Division 2019"]
[Site "Catalonia"]
[Date "2019.01.26"]
[Round "2"]
[White "Alonso Moyano, Jonathan"]
[Black "Alonso Garcia, Rene Marcial"]
[Result "1-0"]
[ECO "C07"]
[WhiteElo "2374"]
[BlackElo "2348"]
[Annotator "NA"]
[PlyCount "107"]
[EventDate "2019.01.16"]
[EventType "team-tourn"]
[EventCountry "ESP"]
[SourceTitle "playchess.com"]
[Source "ChessBase"]
[SourceQuality "1"]
[WhiteTeam "Barbera"]
[BlackTeam "Cerdanyola Valles"]
[TimeControl "5400+30"]

1. e4 e6 2. d4 d5 3. Nd2 c5 4. exd5 Qxd5 5. Ngf3 cxd4 6. Bc4 Qd7 7. Nb3 Bb4+ 8. Bd2 Bxd2+ 9. Qxd2 Nf6 10. Nbxd4 O-O 11. O-O-O Qc7 12. Bb3 Na6 13. Rhe1 Nc5 14. Kb1 Bd7 15. Qe2 a5 16. a3 Bc6 17. Ba2 Qb6 18. Ka1 Na4 19. c3 Bd5 20. Bxd5 Nxd5 21. Qb5 Nc5 22. Qxb6 Nxb6 23. b3 Rfd8 24. a4 f6 25. Rb1 e5 26. Nb5 Rd7 27. Ka2 Nd3 28. Rf1 Rad8 29. Rbd1 Nb4+ 30. cxb4 Rxd1 31. Rxd1 Rxd1 32. bxa5 Nd5 33. Kb2 Rf1 34. Nd6 Rxf2+ 35. Ka3 Rxg2 36. Nxb7 Nc7 37. Nd6 Rf2 38. Ng1 f5 39. b4 e4 40. b5 e3 41. a6 e2 42. Nxe2 Rxe2 43. a7 Na8 44. a5 Re7 45. b6 f4 46. Nf5 Rd7 47. Kb4 g6 48. Nh6+ Kf8 49. Kb5 Ke7 50. Kc6 Kd8 51. a6 f3 52. b7 f2 53. b8=Q+ Ke7 54. Qe5+ {Ke8} 1-0

[Event "CAT-chT Honor Division 2019"]
[Site "Catalonia"]
[Date "2019.01.26"]
[Round "2"]
[White "Ortega Serra, Marc"]
[Black "Hernandez, Cristian Andres"]
[Result "1/2-1/2"]
[ECO "D04"]
[WhiteElo "2352"]
[BlackElo "2320"]
[Annotator "NA"]
[PlyCount "93"]
[EventDate "2019.01.16"]
[EventType "team-tourn"]
[EventCountry "ESP"]
[SourceTitle "playchess.com"]
[Source "ChessBase"]
[SourceQuality "1"]
[WhiteTeam "Cerdanyola Valles"]
[BlackTeam "Barbera"]
[TimeControl "5400+30"]

1. d4 d5 2. Nf3 c6 3. e3 Nf6 4. Bd3 Bg4 5. c4 Nbd7 6. Nc3 e6 7. O-O Bd6 8. e4 dxe4 9. Nxe4 Nxe4 10. Bxe4 O-O 11. h3 Bh5 12. Qb3 Rb8 13. c5 Nf6 14. cxd6 Nxe4 15. Bf4 Bxf3 16. Qxf3 Nxd6 17. Rfd1 Rc8 18. Qa3 Nb5 19. Qg3 f6 20. Qb3 Qd5 21. Qb4 b6 22. a4 a5 23. Qd2 Nd6 24. Bxd6 Qxd6 25. Qe2 Rcd8 26. Rac1 Rf7 27. Qc4 Rc7 28. Re1 Kf7 29. Qb3 Rb8 30. Qd3 Kg8 31. Qc4 Kf7 32. Qd3 g6 33. Qe3 Rd7 34. Qf3 Rc8 35. Qb3 Rb7 36. Qe3 Re7 37. Qb3 Qb4 38. Qe3 Qd6 39. Qb3 Qb4 40. Qe3 Rcc7 41. Qh6 Kg8 42. Qf4 Kf7 43. Qh6 Kg8 44. Qf4 Kf7 45. Qh6 Kg8 46. Qf4 Kf7 47. Qh6 1/2-1/2

[Event "CAT-chT Honor Division 2019"]
[Site "Catalonia"]
[Date "2019.01.26"]
[Round "2"]
[White "Perez Manas, Benjamin"]
[Black "Bru Rullo, Llatzer"]
[Result "0-1"]
[ECO "B40"]
[WhiteElo "2303"]
[BlackElo "2298"]
[Annotator "NA"]
[PlyCount "62"]
[EventDate "2019.01.16"]
[EventType "team-tourn"]
[EventCountry "ESP"]
[SourceTitle "playchess.com"]
[Source "ChessBase"]
[SourceQuality "1"]
[WhiteTeam "Barbera"]
[BlackTeam "Cerdanyola Valles"]
[TimeControl "5400+30"]

1. e4 c5 2. Nf3 e6 3. d4 cxd4 4. Nxd4 Nc6 5. Nxc6 bxc6 6. Bd3 Nf6 7. O-O d5 8. Nc3 Be7 9. Qe2 O-O 10. f4 Qc7 11. Kh1 Bb7 12. Bd2 c5 13. exd5 exd5 14. Rae1 Rfe8 15. Bb5 Bc6 16. Bxc6 Qxc6 17. Qb5 Qc8 18. Qd3 c4 19. Qd4 Qf5 20. Re5 Qxc2 21. Bc1 Bd6 22. Rxe8+ Rxe8 23. Nxd5 Nxd5 24. Qxd5 Bb4 25. Qd1 Qd3 26. b3 Qxd1 27. Rxd1 c3 28. g3 c2 29. Rf1 Rd8 30. Kg2 Rd1 31. Kf2 Bd2 0-1

[Event "CAT-chT Honor Division 2019"]
[Site "Catalonia"]
[Date "2019.01.26"]
[Round "2"]
[White "Mestre Bellido, Hector"]
[Black "Valle Maytin, Luis Enrique"]
[Result "1/2-1/2"]
[ECO "D02"]
[WhiteElo "2285"]
[BlackElo "2285"]
[Annotator "NA"]
[PlyCount "26"]
[EventDate "2019.01.16"]
[EventType "team-tourn"]
[EventCountry "ESP"]
[SourceTitle "playchess.com"]
[Source "ChessBase"]
[SourceQuality "1"]
[WhiteTeam "Foment"]
[BlackTeam "Gerunda"]
[TimeControl "5400+30"]

1. Nf3 {[%emt 0:00:00]} d5 {[%emt 0:00:00]} 2. d4 {[%emt 0:00:00]} Nf6 {[%emt 0:00:00]} 3. g3 {[%emt 0:00:00]} b6 {[%emt 0:00:28]} 4. Bg2 {[%emt 0:00:07]} Bb7 {[%emt 0:00:07]} 5. c4 {[%emt 0:00:43]} e6 {[%emt 0:01:07]} 6. Nc3 {[%emt 0:00:03]} Nbd7 {[%emt 0:01:34]} 7. O-O {[%emt 0:04:36]} Be7 {[%emt 0:17:15]} 8. Bf4 {[%emt 0:03:41]} dxc4 {[%emt 0:01:41]} 9. Qa4 {[%emt 0:02:46]} O-O {[%emt 0:04:59]} 10. Rfd1 {[%emt 0:12:10]} Nd5 {[%emt 0:06:26]} 11. Ne5 {[%emt 0:00:46]} Nxe5 {[%emt 0:08:20]} 12. dxe5 {[%emt 0:14:36]} Nxc3 13. bxc3 Qc8 1/2-1/2

[Event "CAT-chT Honor Division 2019"]
[Site "Catalonia"]
[Date "2019.01.26"]
[Round "2"]
[White "Mayo Casademont, Marti"]
[Black "Torrecillas Martinez, Antonio"]
[Result "1/2-1/2"]
[ECO "A10"]
[WhiteElo "2284"]
[BlackElo "2322"]
[Annotator "NA"]
[PlyCount "65"]
[EventDate "2019.01.16"]
[EventType "team-tourn"]
[EventCountry "ESP"]
[SourceTitle "playchess.com"]
[Source "ChessBase"]
[SourceQuality "1"]
[WhiteTeam "Gerunda"]
[BlackTeam "Foment"]
[TimeControl "5400+30"]

1. c4 {[%emt 0:02:37]} Nf6 {[%emt 0:00:00]} 2. g3 {[%emt 0:00:24]} c6 {[%emt 0:00:26]} 3. Bg2 {[%emt 0:00:30]} d5 {[%emt 0:00:07]} 4. Nf3 {[%emt 0:00:30]} g6 {[%emt 0:00:28]} 5. b3 {[%emt 0:02:28]} Bg7 {[%emt 0:00:25]} 6. Bb2 {[%emt 0:00:53]} O-O {[%emt 0:00:11]} 7. O-O {[%emt 0:00:52]} b6 {[%emt 0:09:05]} 8. d3 {[%emt 0:04:30]} Bb7 {[%emt 0:02:10]} 9. Nbd2 {[%emt 0:02:23]} c5 {[%emt 0:09:27]} 10. cxd5 {[%emt 0:01:55]} Bxd5 {[%emt 0:06:06]} 11. Qc2 {[%emt 0:05:21]} Nc6 {[%emt 0:10:32]} 12. Rac1 {[%emt 0:02:23]} Rc8 {[%emt 0:04:17]} 13. Qb1 {[%emt 0:02:21]} Qd7 {[%emt 0:04:11]} 14. Qa1 {[%emt 0:06:47]} Rfd8 {[%emt 0:03:17]} 15. Rfd1 {[%emt 0:22:11]} Ne8 {[%emt 0:03:53]} 16. Bxg7 {[%emt 0:13:47]} Nxg7 {[%emt 0:00:31]} 17. Ne5 {[%emt 0:05:35]} Nxe5 {[%emt 0:01:57]} 18. Qxe5 {[%emt 0:00:08]} Bxg2 {[%emt 0:00:38]} 19. Kxg2 {[%emt 0:00:05]} Rc6 {[%emt 0:01:17]} 20. Nf3 {[%emt 0:01:49]} Re6 {[%emt 0:01:41]} 21. Qb2 {[%emt 0:00:59]} Nf5 {[%emt 0:00:52]} 22. Rc4 {[%emt 0:04:14]} Qb7 {[%emt 0:03:27]} 23. Kg1 {[%emt 0:00:35]} Nd6 {[%emt 0:02:02]} 24. Rcc1 {[%emt 0:04:40]} Nb5 {[%emt 0:02:08]} 25. a4 {[%emt 0:04:17]} Nd4 {[%emt 0:03:15]} 26. Nxd4 {[%emt 0:00:09]} Rxd4 {[%emt 0:00:05]} 27. Rc4 {[%emt 0:00:55]} Red6 {[%emt 0:00:35]} 28. Rdc1 {[%emt 0:02:10]} a5 {[%emt 0:07:55]} 29. Rxd4 {[%emt 0:00:52]} Rxd4 {[%emt 0:00:20]} 30. Rc4 {[%emt 0:00:09]} Qd7 {[%emt 0:05:53]} 31. Rxd4 {[%emt 0:01:09]} Qxd4 {[%emt 0:06:25]} 32. Qc2 {[%emt 0:02:01]} Qe5 {[%emt 0:02:04]} 33. e3 {[%emt 0:01:13]} 1/2-1/2

[Event "CAT-chT Honor Division 2019"]
[Site "Catalonia"]
[Date "2019.01.26"]
[Round "2"]
[White "Estrella Vidiella, Jordi"]
[Black "Gonzalez Vericat, Sergio"]
[Result "1-0"]
[ECO "A45"]
[WhiteElo "2275"]
[BlackElo "2122"]
[Annotator "NA"]
[PlyCount "143"]
[EventDate "2019.01.16"]
[EventType "team-tourn"]
[EventCountry "ESP"]
[SourceTitle "playchess.com"]
[Source "ChessBase"]
[SourceQuality "1"]
[WhiteTeam "Foment"]
[BlackTeam "Gerunda"]
[TimeControl "5400+30"]

1. d4 {[%emt 0:00:00]} Nf6 {[%emt 0:00:00]} 2. Bg5 {[%emt 0:00:00]} c5 {[%emt 0:00:10]} 3. d5 {[%emt 0:00:58]} Qb6 {[%emt 0:00:34]} 4. Bxf6 {[%emt 0:00:38]} gxf6 {[%emt 0:00:18]} 5. Nd2 {[%emt 0:00:15]} Qxb2 {[%emt 0:04:11]} 6. Ngf3 {[%emt 0:00:09]} f5 {[%emt 0:09:00]} 7. e3 {[%emt 0:02:49]} Qf6 {[%emt 0:06:41]} 8. Rb1 {[%emt 0:02:09]} Bg7 {[%emt 0:02:55]} 9. h3 {[%emt 0:09:00]} e5 {[%emt 0:15:53]} 10. g4 {[%emt 0:06:52]} e4 {[%emt 0:06:27]} 11. Ng1 {[%emt 0:05:54]} d6 {[%emt 0:08:48]} 12. Ne2 {[%emt 0:07:46]} fxg4 {[%emt 0:09:59]} 13. Nf4 {[%emt 0:16:12]} h5 {[%emt 0:09:54]} 14. hxg4 Bxg4 {[%emt 0:02:36]} 15. Be2 {[%emt 0:06:37]} Bc8 {[%emt 0:10:45]} 16. Rg1 {[%emt 0:14:55]} Bh6 {[%emt 0:01:27]} 17. Nxh5 {[%emt 0:02:46]} Qc3 {[%emt 0:01:39]} 18. Rb3 {[%emt 0:01:27]} Qa5 {[%emt 0:01:03]} 19. Nf6+ {[%emt 0:01:27]} Ke7 {[%emt 0:00:48]} 20. Rg8 {[%emt 0:05:45]} Bg7 21. Rxh8 {[%emt 0:06:32]} Bxh8 {[%emt 0:01:15]} 22. Bg4 {[%emt 0:01:58]} c4 {[%emt 0:02:07]} 23. Rb1 {[%emt 0:00:45]} Bxf6 {[%emt 0:01:42]} 24. Bxc8 {[%emt 0:00:02]} Na6 {[%emt 0:02:18]} 25. Rxb7+ {[%emt 0:03:23]} Kf8 {[%emt 0:01:07]} 26. Qh5 {[%emt 0:02:04]} Nc7 {[%emt 0:00:17]} 27. Qf5 {[%emt 0:02:06]} Be7 {[%emt 0:01:05]} 28. Be6 {[%emt 0:00:37]} Nxe6 {[%emt 0:00:07]} 29. Qxe4 {[%emt 0:00:18]} Rd8 {[%emt 0:00:53]} 30. dxe6 {[%emt 0:00:09]} Qh5 {[%emt 0:00:26]} 31. exf7 {[%emt 0:01:19]} Qxf7 32. Rxa7 d5 {[%emt 0:00:43]} 33. Qf3 {[%emt 0:00:31]} Qxf3 34. Nxf3 Rb8 {[%emt 0:00:50]} 35. Nd4 {[%emt 0:00:21]} Rb1+ {[%emt 0:00:29]} 36. Kd2 {[%emt 0:00:15]} Bb4+ {[%emt 0:00:17]} 37. Ke2 {[%emt 0:00:13]} Re1+ {[%emt 0:00:47]} 38. Kf3 {[%emt 0:00:05]} Bc3 {[%emt 0:00:28]} 39. Ne2 {[%emt 0:00:35]} Bf6 {[%emt 0:00:46]} 40. Nf4 {[%emt 0:00:50]} d4 {[%emt 0:00:35]} 41. Ne6+ {[%emt 0:00:35]} Ke8 {[%emt 0:00:14]} 42. Nxd4 {[%emt 0:00:02]} Bxd4 {[%emt 0:00:08]} 43. exd4 {[%emt 0:00:07]} Rc1 {[%emt 0:00:05]} 44. Ke4 {[%emt 0:00:31]} Rxc2 45. f4 {[%emt 0:00:10]} Re2+ {[%emt 0:00:23]} 46. Kd5 {[%emt 0:00:02]} c3 {[%emt 0:00:13]} 47. Rc7 {[%emt 0:00:09]} Rxa2 {[%emt 0:00:54]} 48. Rxc3 {[%emt 0:00:10]} Kd7 {[%emt 0:00:09]} 49. Rh3 {[%emt 0:00:21]} Ra5+ {[%emt 0:00:11]} 50. Ke4 {[%emt 0:00:02]} Ke6 {[%emt 0:01:12]} 51. Rh6+ {[%emt 0:00:12]} Ke7 {[%emt 0:00:43]} 52. d5 {[%emt 0:00:19]} Ra1 {[%emt 0:00:32]} 53. Rb6 {[%emt 0:01:13]} Rh1 {[%emt 0:00:28]} 54. Ke5 {[%emt 0:00:36]} Re1+ {[%emt 0:01:11]} 55. Kf5 {[%emt 0:00:16]} Rg1 {[%emt 0:00:26]} 56. Re6+ {[%emt 0:00:59]} Kf7 {[%emt 0:00:34]} 57. Re4 {[%emt 0:00:51]} Rd1 {[%emt 0:00:22]} 58. Ke5 {[%emt 0:00:09]} Ke7 {[%emt 0:00:16]} 59. Rd4 {[%emt 0:00:58]} Re1+ {[%emt 0:00:30]} 60. Kf5 {[%emt 0:00:02]} Kd6 {[%emt 0:01:37]} 61. Kf6 {[%emt 0:00:19]} Rg1 {[%emt 0:00:17]} 62. f5 {[%emt 0:00:37]} Rg2 {[%emt 0:00:18]} 63. Rd1 {[%emt 0:00:18]} Rg3 {[%emt 0:00:27]} 64. Kf7 {[%emt 0:00:20]} Rf3 {[%emt 0:00:50]} 65. f6 {[%emt 0:01:10]} Rg3 {[%emt 0:00:38]} 66. Kf8 {[%emt 0:00:51]} Kd7 {[%emt 0:00:24]} 67. f7 {[%emt 0:00:12]} Rg5 {[%emt 0:00:27]} 68. d6 {[%emt 0:01:42]} Rg3 {[%emt 0:00:39]} 69. Rh1 {[%emt 0:01:06]} Kd8 {[%emt 0:00:30]} 70. Rh8 {[%emt 0:00:13]} Kd7 {[%emt 0:00:30]} 71. Rg8 {[%emt 0:00:12]} Rf3 {[%emt 0:00:28]} 72. Rg6 {[%emt 0:00:18]} 1-0

[Event "CAT-chT Honor Division 2019"]
[Site "Catalonia"]
[Date "2019.01.26"]
[Round "2"]
[White "Ramirez Carrizo, Victor Jose"]
[Black "Castellet Giralt, Gabriel"]
[Result "1-0"]
[ECO "B76"]
[WhiteElo "2211"]
[BlackElo "2217"]
[Annotator "NA"]
[PlyCount "75"]
[EventDate "2019.01.16"]
[EventType "team-tourn"]
[EventCountry "ESP"]
[SourceTitle "playchess.com"]
[Source "ChessBase"]
[SourceQuality "1"]
[WhiteTeam "Barbera"]
[BlackTeam "Cerdanyola Valles"]
[TimeControl "5400+30"]

1. e4 c5 2. Nf3 Nc6 3. d4 cxd4 4. Nxd4 g6 5. Nc3 Bg7 6. Be3 Nf6 7. Bc4 O-O 8. Bb3 d6 9. f3 Bd7 10. h4 Nxd4 11. Bxd4 b5 12. h5 a5 13. hxg6 hxg6 14. Nd5 a4 15. Nxf6+ exf6 16. Bd5 Qa5+ 17. c3 Rac8 18. Qd2 Rfe8 19. Qf4 Re5 20. Bxe5 dxe5 21. Qd2 Rd8 22. a3 Be6 23. O-O-O f5 24. Qg5 Bxd5 25. Rxd5 Rxd5 26. exd5 Qc7 27. Rd1 Qd6 28. Qh4 f4 29. Qf2 Bf8 30. Qa7 f5 31. Qb7 e4 32. fxe4 fxe4 33. Qxb5 f3 34. gxf3 exf3 35. Qc4 Bh6+ 36. Kb1 g5 37. Qe4 f2 38. Qf5 1-0